bitfinex/quotes_BTCUSD_20250903
["timestamp","ask_amount","ask_price","bid_price","bid_amount"]
[1756917331765,0.69210474,112290.0,112280.0,0.77709875]
[1756917333021,0.69210474,112290.0,112280.0,0.62621875]
[1756917333224,0.69210474,112290.0,112280.0,0.77709875]
[1756917333435,0.69210474,112290.0,112280.0,0.72900611]
[1756917334551,0.69210474,112290.0,112280.0,0.32900611]
[1756917334996,0.69210474,112290.0,112280.0,0.72900611]
[1756917336034,0.51399449,112290.0,112280.0,0.72900611]
[1756917336469,0.69210474,112290.0,112280.0,0.72900611]
[1756917337264,0.51399449,112290.0,112280.0,0.72900611]
[1756917338058,0.03362647,112290.0,112280.0,0.32900611]
[1756917338254,0.03640944,112290.0,112280.0,0.32900611]
[1756917338462,0.01106647,112290.0,112280.0,0.79523916]
[1756917338700,0.00601647,112290.0,112280.0,0.79523916]
[1756917339276,0.00601647,112290.0,112280.0,1.27560718]
[1756917339704,0.00601647,112290.0,112280.0,0.79523916]
[1756917339917,0.00601647,112290.0,112280.0,0.82201171]
[1756917340758,0.00921647,112290.0,112280.0,0.82201171]
[1756917341158,0.01131647,112290.0,112280.0,0.82201171]
[1756917343019,0.00921647,112290.0,112280.0,0.89049171]
[1756917343242,0.01131647,112290.0,112280.0,0.73749171]
[1756917343655,0.01131647,112290.0,112280.0,0.88833171]
[1756917343894,0.49446746,112290.0,112280.0,0.88833171]
[1756917344109,0.49168449,112290.0,112280.0,0.88833171]
[1756917344328,0.66979474,112290.0,112280.0,0.88833171]
[1756917344513,0.66979474,112290.0,112280.0,0.79744611]
[1756917344719,0.49168449,112290.0,112280.0,0.79744611]
[1756917345335,0.66979474,112290.0,112280.0,0.79744611]
[1756917345598,0.54975126,112290.0,112280.0,0.64660611]
[1756917345756,0.54975126,112290.0,112280.0,0.79744611]
[1756917346159,0.37164101,112290.0,112280.0,0.79744611]
[1756917346960,0.01131647,112290.0,112280.0,0.79955611]
[1756917347167,0.37442398,112290.0,112280.0,0.79955611]
[1756917347368,0.01131647,112290.0,112280.0,0.86366916]
[1756917347553,0.37164101,112290.0,112280.0,0.86366916]
[1756917347978,0.00601647,112290.0,112280.0,0.86366916]
[1756917348180,0.00601647,112290.0,112280.0,1.2239937]
[1756917348894,0.00224702,112290.0,112280.0,1.2239937]
[1756917349029,0.00224702,112290.0,112280.0,1.2254337]
[1756917349253,0.00124702,112290.0,112280.0,0.89044172]
[1756917349529,0.00124702,112290.0,112280.0,1.25076626]
[1756917350484,0.00024702,112290.0,112280.0,1.25076626]
[1756917350938,0.00024702,112290.0,112280.0,1.64033374]
[1756917351169,0.01538147,112290.0,112280.0,1.64033374]
[1756917351551,0.01538147,112290.0,112280.0,1.2800092]
[1756917352238,0.01538147,112290.0,112280.0,1.64033374]
[1756917352446,0.01538147,112290.0,112280.0,1.72047505]
[1756917353228,0.01538147,112290.0,112280.0,1.56963505]
[1756917353454,0.01538147,112290.0,112280.0,0.99834597]
[1756917353695,0.01538147,112290.0,112280.0,1.35867051]
[1756917354693,0.01538147,112290.0,112280.0,1.2785292]
[1756917355795,0.01538147,112290.0,112280.0,1.1277292]
[1756917356001,0.01538147,112290.0,112280.0,0.76740466]
[1756917356211,0.01858147,112290.0,112280.0,1.2785292]
[1756917356419,0.01538147,112290.0,112280.0,1.2785292]
[1756917357395,0.01538147,112290.0,112280.0,1.64029374]
[1756917357615,0.01538147,112290.0,112280.0,1.72043505]
[1756917357835,0.01538147,112290.0,112280.0,1.74137387]
[1756917360640,0.01538147,112290.0,112280.0,0.86848479]
[1756917360822,0.01538147,112290.0,112280.0,1.01928479]
[1756917361028,0.01538147,112290.0,112280.0,1.37960933]
[1756917361243,0.01538147,112290.0,112280.0,1.22880933]
[1756917361466,0.02068147,112290.0,112280.0,1.01717479]
[1756917361691,0.02068147,112290.0,112280.0,0.93703348]
[1756917361908,0.02068147,112290.0,112280.0,1.14866802]
[1756917362130,0.02068147,112290.0,112280.0,1.3635635]
[1756917362830,0.01858147,112290.0,112280.0,1.3635635]
[1756917363041,0.01538147,112290.0,112280.0,1.3635635]
[1756917363268,0.02068147,112290.0,112280.0,1.3635635]
[1756917363894,0.02068147,112290.0,112280.0,0.98019014]
[1756917364102,0.02068147,112290.0,112280.0,1.34051468]
[1756917364555,0.38100601,112290.0,112280.0,0.82939014]
[1756917364772,0.38477546,112290.0,112280.0,0.88823415]
[1756917365121,0.56288571,112290.0,112280.0,0.73747415]
[1756917365313,0.58698571,112290.0,112280.0,0.79736611]
[1756917365520,0.40887546,112290.0,112280.0,0.79736611]
[1756917366894,0.04855092,112290.0,112280.0,0.79736611]
[1756917367109,0.41165843,112290.0,112280.0,0.79736611]
[1756917367308,0.40887546,112290.0,112280.0,0.79736611]
[1756917367503,0.04855092,112290.0,112280.0,0.79736611]
[1756917367689,0.41165843,112290.0,112280.0,0.79736611]
[1756917367890,0.40887546,112290.0,112280.0,0.79736611]
[1756917368434,0.40887546,112290.0,112280.0,0.39736611]
[1756917368835,0.40887546,112290.0,112280.0,0.79736611]
[1756917369852,0.58698571,112290.0,112280.0,0.46848]
[1756917370059,0.94731025,112290.0,112280.0,0.63090557]
[1756917370272,0.94731025,112290.0,112280.0,0.0320595]
[1756917370273,1.03922624,112290.0,112280.0,0.0320595]
[1756917370479,1.43227487,112290.0,112280.0,0.0320595]
[1756917370680,1.37922624,112290.0,112280.0,0.1828195]
[1756917370926,1.40600279,112290.0,112280.0,0.1828195]
[1756917371319,0.68535371,112290.0,112280.0,0.36094561]
[1756917371531,0.41532747,112290.0,112280.0,0.36094561]
[1756917371751,0.95376226,112290.0,112280.0,0.36094561]
[1756917372004,0.95476226,112290.0,112280.0,0.36094561]
[1756917372468,0.95676226,112290.0,112280.0,0.36094561]
[1756917372668,0.95376226,112290.0,112280.0,0.36094561]
[1756917372953,0.95876226,112290.0,112280.0,0.36094561]
[1756917373108,0.78065201,112290.0,112280.0,0.36094561]
[1756917373318,0.41732747,112290.0,112280.0,0.36094561]
[1756917373537,0.77765201,112290.0,112280.0,0.36094561]
[1756917373760,0.77865201,112290.0,112280.0,0.36094561]
[1756917373967,0.77665201,112290.0,112280.0,0.36094561]
[1756917374165,0.59443772,112290.0,112280.0,0.36094561]
[1756917374315,0.77665201,112290.0,112280.0,0.36094561]
[1756917374516,0.77765201,112290.0,112280.0,0.76094561]
[1756917374979,0.59543772,112290.0,112280.0,0.76094561]
[1756917375192,0.95576226,112290.0,112280.0,0.76094561]
[1756917377246,0.77765201,112290.0,112280.0,0.76094561]
[1756917377456,0.77765201,112290.0,112280.0,0.36094561]
[1756917377815,0.05322747,112290.0,112280.0,0.36305561]
[1756917378032,0.38955843,112290.0,112280.0,0.77908218]
[1756917378259,0.38677546,112290.0,112280.0,0.77908218]
[1756917378467,0.02115092,112290.0,112280.0,1.13940672]
[1756917378687,0.02115092,112290.0,112280.0,1.11809454]
[1756917379299,0.02115092,112290.0,112280.0,0.75777]
[1756917379502,0.02115092,112290.0,112280.0,1.11809454]
[1756917381250,0.01738147,112290.0,112280.0,1.11809454]
[1756917381459,0.02115092,112290.0,112280.0,0.75777]
[1756917381696,0.01738147,112290.0,112280.0,1.11809454]
[1756917381903,0.01738147,112290.0,112280.0,1.11953454]
[1756917382089,0.01738147,112290.0,112280.0,1.21145053]
[1756917382361,0.01738147,112290.0,112280.0,1.27554601]
[1756917382568,0.01738147,112290.0,112280.0,1.27410601]
[1756917382994,0.01738147,112290.0,112280.0,0.76302147]
[1756917383166,0.01738147,112290.0,112280.0,1.27410601]
[1756917383898,0.01738147,112290.0,112280.0,0.91378147]
[1756917384128,0.01538147,112290.0,112280.0,1.27410601]
[1756917384586,0.01738147,112290.0,112280.0,1.27410601]
[1756917384791,0.01638147,112290.0,112280.0,1.27410601]
[1756917384995,0.01538147,112290.0,112280.0,1.27410601]
[1756917385539,0.01538147,112290.0,112280.0,1.12334601]
[1756917385726,0.02052147,112290.0,112280.0,1.12334601]
[1756917385852,0.02052147,112290.0,112280.0,1.27410601]
[1756917386084,0.01843147,112290.0,112280.0,1.27410601]
[1756917387405,0.01843147,112290.0,112280.0,1.12334601]
[1756917387599,0.01843147,112290.0,112280.0,1.27410601]
[1756917389161,0.01538147,112290.0,112280.0,1.27410601]
[1756917390141,0.01538147,112290.0,112280.0,0.91378147]
[1756917390142,0.02052147,112290.0,112280.0,0.91378147]
[1756917390350,0.01843147,112290.0,112280.0,1.27410601]
[1756917390556,0.01538147,112290.0,112280.0,1.27410601]
[1756917390940,0.01538147,112290.0,112280.0,1.34258601]
[1756917392119,0.01538147,112290.0,112280.0,1.70435055]
[1756917392320,0.01538147,112290.0,112280.0,1.64025507]
[1756917392747,0.01538147,112290.0,112280.0,0.91816599]
[1756917393141,0.01538147,112290.0,112280.0,1.64025507]
[1756917393820,0.01538147,112290.0,112280.0,1.63881507]
[1756917394986,0.01538147,112290.0,112280.0,1.48805507]
[1756917395172,0.01538147,112290.0,112280.0,1.63881507]
[1756917395575,0.01538147,112290.0,112280.0,1.48805507]
[1756917395750,0.01538147,112290.0,112280.0,1.63881507]
[1756917395927,0.01538147,112290.0,112280.0,1.64025507]
[1756917396543,0.01538147,112290.0,112280.0,1.63881507]
[1756917397418,0.01538147,112290.0,112280.0,1.70287951]
[1756917398762,0.01538147,112290.0,112280.0,0.98223043]
[1756917399038,0.01538147,112290.0,112280.0,1.70287951]
[1756917401244,0.01538147,112290.0,112280.0,1.63881507]
[1756917402053,0.01538147,112290.0,112280.0,1.63877507]
[1756917402253,0.02046147,112290.0,112280.0,0.91812599]
[1756917402481,0.02046147,112290.0,112280.0,1.34252446]
[1756917402895,0.02046147,112290.0,112280.0,1.18969446]
[1756917403101,0.02046147,112290.0,112280.0,1.34041446]
[1756917403301,0.02046147,112290.0,112280.0,1.18969446]
[1756917403504,0.02046147,112290.0,112280.0,1.34041446]
[1756917404744,0.02046147,112290.0,112280.0,1.34255446]
[1756917405141,0.02046147,112290.0,112280.0,1.34041446]
[1756917405485,0.02046147,112290.0,112280.0,1.34255446]
[1756917406431,0.01836147,112290.0,112280.0,1.27848053]
[1756917406636,0.01538147,112290.0,112280.0,1.27848053]
[1756917407491,0.01538147,112290.0,112280.0,0.91815599]
[1756917407692,0.01538147,112290.0,112280.0,1.39842006]
[1756917408107,0.02046147,112290.0,112280.0,0.91815599]
[1756917408314,0.02046147,112290.0,112280.0,0.76529599]
[1756917408490,0.02046147,112290.0,112280.0,0.91601599]
[1756917409459,0.02423092,112290.0,112280.0,0.67338]
[1756917409657,0.02423092,112290.0,112280.0,0.88824768]
[1756917409824,0.68538821,112290.0,112280.0,0.73752768]
[1756917410029,0.50449499,112290.0,112280.0,0.86147379]
[1756917410680,0.68260524,112290.0,112280.0,0.71075379]
[1756917410853,0.68260524,112290.0,112280.0,0.86147379]
[1756917411445,0.02423092,112290.0,112280.0,0.79732611]
[1756917411660,0.02701389,112290.0,112280.0,0.79732611]
[1756917414632,0.02701389,112290.0,112280.0,0.39732611]
[1756917415118,0.02701389,112290.0,112280.0,0.79732611]
[1756917417757,0.02701389,112290.0,112280.0,0.64660611]
[1756917417965,0.02701389,112290.0,112280.0,0.79732611]
[1756917418370,0.02701389,112290.0,112280.0,0.39732611]
[1756917418809,0.02701389,112290.0,112280.0,0.79732611]
[1756917420179,0.20512414,112290.0,112280.0,0.24660611]
[1756917420423,0.50449499,112290.0,112280.0,0.4454066]
[1756917420660,0.68260524,112290.0,112280.0,0.4454066]
[1756917420870,0.02423092,112290.0,112280.0,0.4454066]
[1756917421064,0.68538821,112290.0,112280.0,0.11656049]
[1756917421322,0.68260524,112290.0,112280.0,0.4454066]
[1756917422651,0.02423092,112290.0,112280.0,0.4454066]
[1756917422840,0.02701389,112290.0,112280.0,0.4454066]
[1756917424006,0.02701389,112290.0,112280.0,0.8454066]
[1756917424567,0.20512414,112290.0,112280.0,0.8454066]
[1756917424771,0.20234117,112290.0,112280.0,0.8454066]
[1756917425067,0.02423092,112290.0,112280.0,0.8454066]
[1756917425280,0.02701389,112290.0,112280.0,0.8454066]
[1756917425943,0.02701389,112290.0,112280.0,0.6946866]
[1756917426143,0.02701389,112290.0,112280.0,0.8454066]
[1756917427161,0.20512414,112290.0,112280.0,0.8454066]
[1756917427389,0.50449499,112290.0,112280.0,0.8454066]
[1756917429175,0.02423092,112290.0,112280.0,0.8454066]
[1756917429491,0.68538821,112290.0,112280.0,0.51656049]
[1756917429709,0.68260524,112290.0,112280.0,0.29932798]
[1756917429940,0.68260524,112290.0,112280.0,0.03204749]
[1756917429941,1.04679524,112290.0,112280.0,0.03204749]
[1756917430165,0.18189556,112280.0,112270.0,0.08012798]
[1756917430380,0.69152963,112280.0,112270.0,0.18276749]
[1756917430806,0.03313945,112280.0,112270.0,0.36090946]
[1756917431022,0.18985878,112280.0,112270.0,0.40898995]
[1756917431245,0.00894945,112280.0,112270.0,0.41108995]
[1756917431923,0.01173267,112280.0,112270.0,0.41108995]
[1756917432412,0.01173267,112280.0,112270.0,0.37904246]
[1756917432631,0.01173267,112280.0,112270.0,0.38004246]
[1756917433105,0.01173267,112280.0,112270.0,0.38204246]
[1756917433575,0.01173267,112280.0,112270.0,0.78204246]
[1756917434214,0.00655267,112280.0,112270.0,0.78204246]
[1756917434425,0.02223092,112290.0,112280.0,0.17812611]
[1756917434634,0.02501389,112290.0,112280.0,0.26032392]
[1756917434844,0.02711389,112290.0,112280.0,0.25822392]
[1756917435054,0.20522414,112290.0,112280.0,0.25822392]
[1756917435187,0.20244117,112290.0,112280.0,0.25822392]
[1756917435417,0.20244117,112290.0,112280.0,0.2261848]
[1756917436012,0.02433092,112290.0,112280.0,0.2261848]
[1756917436410,0.20522414,112290.0,112280.0,0.2261848]
[1756917436625,0.20244117,112290.0,112280.0,0.2261848]
[1756917437060,0.20244117,112290.0,112280.0,0.6261848]
[1756917438603,0.68270524,112290.0,112280.0,0.6261848]
[1756917440134,0.68270524,112290.0,112280.0,0.2261848]
[1756917440610,0.68270524,112290.0,112280.0,0.6261848]
[1756917440939,0.20244117,112290.0,112280.0,0.6261848]
[1756917441115,0.68270524,112290.0,112280.0,0.6261848]
[1756917441857,0.20244117,112290.0,112280.0,0.7769048]
[1756917442072,0.68270524,112290.0,112280.0,0.7769048]
[1756917442252,0.20244117,112290.0,112280.0,0.7769048]
[1756917442450,0.68270524,112290.0,112280.0,0.7769048]
[1756917443249,0.68470524,112290.0,112280.0,0.7769048]
[1756917443730,0.68470524,112290.0,112280.0,0.3769048]
[1756917444235,0.20444117,112290.0,112280.0,0.7769048]
[1756917446617,0.02633092,112290.0,112280.0,0.7769048]
[1756917446833,0.68748821,112290.0,112280.0,0.7769048]
[1756917447006,0.68470524,112290.0,112280.0,0.7769048]
[1756917447156,0.68470524,112290.0,112280.0,0.3769048]
[1756917447558,0.68470524,112290.0,112280.0,0.7769048]
[1756917448416,0.68470524,112290.0,112280.0,0.7790048]
[1756917449991,0.68470524,112290.0,112280.0,0.7769048]
[1756917450754,0.68470524,112290.0,112280.0,0.3769048]
[1756917451049,0.68470524,112290.0,112280.0,0.7769048]
[1756917452251,0.50659499,112290.0,112280.0,0.7790048]
[1756917452456,0.02115092,112290.0,112280.0,0.7790048]
[1756917452665,0.02633092,112290.0,112280.0,0.7790048]
[1756917452868,0.02423092,112290.0,112280.0,0.7790048]
[1756917453748,0.02633092,112290.0,112280.0,0.7790048]
[1756917453961,0.02115092,112290.0,112280.0,0.7790048]
[1756917454169,0.02115092,112290.0,112280.0,0.33094611]
[1756917454590,0.02115092,112290.0,112280.0,0.79509379]
[1756917455103,0.02911389,112290.0,112280.0,0.79299379]
[1756917455309,0.50937796,112290.0,112280.0,0.72880611]
[1756917455514,0.50659499,112290.0,112280.0,0.72880611]
[1756917455923,0.02633092,112290.0,112280.0,0.73090611]
[1756917456135,0.02911389,112290.0,112280.0,0.73090611]
[1756917457528,0.02911389,112290.0,112280.0,0.33090611]
[1756917458134,0.02911389,112290.0,112280.0,0.73090611]
[1756917459955,0.02911389,112290.0,112280.0,0.72880611]
[1756917460156,0.02911389,112290.0,112280.0,0.73095611]
[1756917460336,0.02393389,112290.0,112280.0,0.73095611]
[1756917460944,0.02115092,112290.0,112280.0,1.27680786]
[1756917461268,0.02115092,112290.0,112280.0,1.30358144]
[1756917461481,0.02115092,112290.0,112280.0,0.82331737]
[1756917462727,0.02115092,112290.0,112280.0,0.67263737]
[1756917462876,0.02115092,112290.0,112280.0,0.82187737]
[1756917463098,0.02015092,112290.0,112280.0,0.82187737]
[1756917463295,0.02015092,112290.0,112280.0,0.67119737]
[1756917463502,0.01915092,112290.0,112280.0,0.82187737]
[1756917463923,0.02015092,112290.0,112280.0,0.67119737]
[1756917464100,0.02015092,112290.0,112280.0,0.82187737]
[1756917464490,0.01915092,112290.0,112280.0,0.67119737]
[1756917464691,0.01915092,112290.0,112280.0,0.82187737]
[1756917465654,0.02220092,112290.0,112280.0,0.82187737]
[1756917466011,0.01915092,112290.0,112280.0,0.89035737]
[1756917466377,0.02220092,112290.0,112280.0,0.89035737]
[1756917466778,0.02220092,112290.0,112280.0,0.73967737]
[1756917466980,0.02419092,112290.0,112280.0,0.89035737]
[1756917467415,0.02220092,112290.0,112280.0,0.89035737]
[1756917467627,0.9256128,112290.0,112280.0,0.55940126]
[1756917467833,1.26282983,112290.0,112280.0,0.04810215]
[1756917468037,1.28773983,112290.0,112280.0,0.23169175]
[1756917468465,1.31451716,112290.0,112280.0,0.08017175]
[1756917468677,1.31451716,112290.0,112280.0,0.1836696]
[1756917469425,1.31451716,112290.0,112280.0,0.0320696]
[1756917469628,1.31451716,112290.0,112280.0,0.1836296]
[1756917470156,1.31551716,112290.0,112280.0,0.1836296]
[1756917470359,1.31651716,112290.0,112280.0,0.1836296]
[1756917470562,1.31551716,112290.0,112280.0,0.0320696]
[1756917470784,1.42081065,112290.0,112280.0,0.0320696]
[1756917471012,0.52189556,112280.0,112270.0,0.08017175]
[1756917471234,1.51382021,112280.0,112270.0,0.1835896]
[1756917471445,1.51581021,112280.0,112270.0,0.1835896]
[1756917471648,1.51581021,112280.0,112270.0,0.15152]
[1756917471855,1.54259113,112280.0,112270.0,0.15152]
[1756917473009,1.54359113,112280.0,112270.0,0.15152]
[1756917474187,1.39207113,112280.0,112270.0,0.15152]
[1756917474397,1.54455113,112280.0,112270.0,0.15152]
[1756917475068,0.17814197,112270.0,112260.0,0.72680908]
[1756917475278,0.54317976,112270.0,112260.0,0.83018693]
[1756917475494,0.5434463,112270.0,112260.0,0.83018693]
[1756917476282,0.57022722,112270.0,112260.0,0.83018693]
[1756917477238,0.57022722,112270.0,112260.0,0.83233693]
[1756917477667,0.20996289,112270.0,112260.0,0.83233693]
[1756917478011,0.57022722,112270.0,112260.0,0.83233693]
[1756917478951,0.57895993,112270.0,112260.0,0.83233693]
[1756917479777,0.2186956,112270.0,112260.0,0.83233693]
[1756917479993,0.03055037,112270.0,112260.0,1.19260126]
[1756917480199,0.00376945,112270.0,112260.0,1.21007381]
[1756917480811,0.00376945,112270.0,112260.0,0.84832948]
[1756917480943,0.36403378,112270.0,112260.0,0.64878733]
[1756917481145,0.00681945,112270.0,112260.0,0.80018733]
[1756917481348,0.00376945,112270.0,112260.0,0.80018733]
[1756917481572,0.00376945,112270.0,112260.0,0.64878733]
[1756917481767,0.00376945,112270.0,112260.0,0.80018733]
[1756917482642,0.00376945,112270.0,112260.0,0.84819787]
[1756917483920,0.00376945,112270.0,112260.0,0.84811787]
[1756917484982,0.00376945,112270.0,112260.0,0.84807787]
[1756917485196,0.00376945,112270.0,112260.0,0.69679787]
[1756917485418,0.00376945,112270.0,112260.0,0.84807787]
[1756917485634,0.00376945,112270.0,112260.0,1.2097822]
[1756917485834,0.00376945,112270.0,112260.0,1.0585022]
[1756917485968,0.00376945,112270.0,112260.0,1.2097422]
[1756917487284,0.00376945,112270.0,112260.0,1.0585022]
[1756917487525,0.00376945,112270.0,112260.0,1.2097822]
[1756917488613,0.00376945,112280.0,112270.0,0.17814197]
[1756917488858,0.93232945,112290.0,112280.0,0.17812611]
[1756917489067,0.93445945,112290.0,112280.0,0.32936611]
[1756917489282,0.04897825,112290.0,112280.0,1.09158044]
[1756917489516,0.01915092,112290.0,112280.0,0.73131611]
[1756917489777,0.01915092,112290.0,112280.0,1.14103201]
[1756917489987,0.01915092,112290.0,112280.0,1.13959201]
[1756917490199,0.01915092,112290.0,112280.0,0.77932768]
[1756917490383,0.01915092,112290.0,112280.0,1.13959201]
[1756917490947,0.01915092,112290.0,112280.0,0.77932768]
[1756917491239,0.02435092,112290.0,112280.0,0.77737768]
[1756917491592,0.38461525,112290.0,112280.0,0.77737768]
[1756917491794,0.38761525,112290.0,112280.0,0.77737768]
[1756917492329,0.02735092,112290.0,112280.0,0.77932768]
[1756917492557,0.0364666,112290.0,112280.0,0.77932768]
[1756917493091,0.39873093,112290.0,112280.0,0.77932768]
[1756917493520,0.38961525,112290.0,112280.0,0.77932768]
[1756917493864,0.02935092,112290.0,112280.0,0.77932768]
[1756917494067,0.38961525,112290.0,112280.0,0.77932768]
[1756917494911,0.02722092,112290.0,112280.0,0.77932768]
[1756917495620,0.02415092,112290.0,112280.0,0.77932768]
[1756917496455,0.02722092,112290.0,112280.0,0.77932768]
[1756917496839,0.02722092,112290.0,112280.0,0.62808768]
[1756917497039,0.02722092,112290.0,112280.0,0.77916768]
[1756917498944,0.02415092,112290.0,112280.0,0.77916768]
[1756917500622,0.02415092,112290.0,112280.0,0.77896768]
[1756917502769,0.02722092,112290.0,112280.0,0.77896768]
[1756917503411,0.38961525,112290.0,112280.0,0.62808768]
[1756917503647,0.38961525,112290.0,112280.0,0.77888768]
[1756917503826,0.38961525,112290.0,112280.0,0.77693768]
[1756917504411,0.02935092,112290.0,112280.0,0.77693768]
[1756917504620,0.38748525,112290.0,112280.0,0.77888768]
[1756917504827,0.02415092,112290.0,112280.0,0.77888768]
[1756917506848,0.38748525,112290.0,112280.0,0.77884768]
[1756917507094,0.02415092,112290.0,112280.0,0.77884768]
[1756917507310,0.38441525,112290.0,112280.0,0.77884768]
[1756917507631,0.02415092,112290.0,112280.0,0.77884768]
[1756917507831,0.02935092,112290.0,112280.0,0.62808768]
[1756917508052,0.02935092,112290.0,112280.0,0.77880768]
[1756917508479,0.02935092,112290.0,112280.0,0.62808768]
[1756917508708,0.38961525,112290.0,112280.0,0.77685768]
[1756917509364,0.38961525,112290.0,112280.0,0.62613768]
[1756917509575,0.38961525,112290.0,112280.0,0.77685768]
[1756917510205,0.02935092,112290.0,112280.0,0.77685768]
[1756917510411,0.57050847,112290.0,112280.0,0.77685768]
[1756917510609,0.5677255,112290.0,112280.0,0.77685768]
[1756917512702,0.38961525,112290.0,112280.0,0.77685768]
[1756917512860,0.38441525,112290.0,112280.0,0.77880768]
[1756917513241,0.38748525,112290.0,112280.0,0.77880768]
[1756917513439,0.02722092,112290.0,112280.0,0.77880768]
[1756917513643,0.39239822,112290.0,112280.0,0.37880768]
[1756917513884,0.38961525,112290.0,112280.0,0.37880768]
[1756917514104,0.38961525,112290.0,112280.0,0.77880768]
[1756917514500,0.02415092,112290.0,112280.0,0.77880768]
[1756917514705,0.03213389,112290.0,112280.0,0.77880768]
[1756917514901,0.39239822,112290.0,112280.0,0.77880768]
[1756917515135,0.38748525,112290.0,112280.0,0.77880768]
[1756917516631,0.38961525,112290.0,112280.0,0.77880768]
[1756917516844,0.38961525,112290.0,112280.0,0.77685768]
[1756917517242,0.5677255,112290.0,112280.0,0.77685768]
[1756917517499,0.5677255,112290.0,112280.0,0.44801157]
[1756917517703,0.5677255,112290.0,112280.0,0.59873157]
[1756917517877,0.20746117,112290.0,112280.0,0.77685768]
[1756917518105,0.5677255,112290.0,112280.0,0.77685768]
[1756917518442,1.59070546,112290.0,112280.0,0.04801157]
[1756917518643,0.17812611,112280.0,112270.0,0.19873157]
[1756917518843,0.90644799,112280.0,112270.0,0.19873157]
[1756917519045,0.90743422,112280.0,112270.0,0.04801157]
[1756917519275,1.36404021,112280.0,112270.0,0.04801157]
[1756917519477,0.18191142,112270.0,112260.0,0.19873157]
[1756917519685,0.54420575,112270.0,112260.0,0.19873157]
[1756917519838,0.54718575,112270.0,112260.0,0.19873157]
[1756917521875,0.54818575,112270.0,112260.0,0.19873157]
[1756917522368,0.54818575,112270.0,112260.0,0.15172]
[1756917523213,1.36505607,112270.0,112260.0,0.001]
[1756917523448,0.64452741,112270.0,112260.0,0.001]
[1756917523675,1.39184027,112270.0,112260.0,0.001]
[1756917525175,1.77304342,112270.0,112260.0,0.001]
[1756917525612,1.82304342,112270.0,112260.0,0.001]
[1756917525829,1.91495941,112270.0,112260.0,0.001]
[1756917526056,2.06567941,112270.0,112260.0,0.001]
[1756917526273,2.07398686,112270.0,112260.0,0.001]
[1756917526731,2.09507487,112270.0,112260.0,0.001]
[1756917527167,2.11067576,112270.0,112260.0,0.001]
[1756917527400,0.59286611,112260.0,112250.0,0.0123]
[1756917527626,1.95364108,112260.0,112250.0,0.0123]
[1756917527891,1.95567108,112260.0,112250.0,0.0123]
[1756917528339,3.03646407,112260.0,112250.0,0.0123]
[1756917528937,3.19622407,112260.0,112250.0,0.0133]
[1756917529181,3.22301721,112260.0,112250.0,0.0133]
[1756917529396,3.07225721,112260.0,112250.0,0.0133]
[1756917529619,2.02352293,112260.0,112250.0,0.0133]
[1756917530050,1.54247708,112260.0,112250.0,0.0133]
[1756917530278,1.39171708,112260.0,112250.0,0.0133]
[1756917530466,1.34171708,112260.0,112250.0,0.0133]
[1756917530622,1.49247708,112260.0,112250.0,0.0133]
[1756917531544,1.34171708,112260.0,112250.0,0.0133]
[1756917531801,1.49247708,112260.0,112250.0,0.0133]
[1756917534916,1.34171708,112260.0,112250.0,0.0133]
[1756917535143,1.49247708,112260.0,112250.0,0.0133]
[1756917535597,1.97352293,112260.0,112250.0,0.0133]
[1756917536077,1.9945989,112260.0,112250.0,0.0133]
[1756917536566,2.04300206,112260.0,112250.0,0.0133]
[1756917536781,0.18200668,112210.0,112200.0,0.07354631]
[1756917537005,1.24576852,112210.0,112200.0,0.07354631]
[1756917537232,1.09496852,112210.0,112200.0,0.00215]
[1756917537466,1.27256587,112210.0,112200.0,0.40215]
[1756917537694,1.27256587,112210.0,112200.0,0.00215]
[1756917537952,1.28129762,112210.0,112200.0,0.00215]
[1756917538177,1.28630762,112210.0,112200.0,0.00362049]
[1756917538403,1.28427762,112210.0,112200.0,0.00562049]
[1756917538642,1.32561869,112210.0,112200.0,0.00562049]
[1756917538821,1.28630762,112210.0,112200.0,0.00562049]
[1756917539259,1.28630762,112210.0,112200.0,0.00262049]
[1756917540325,1.28830762,112210.0,112200.0,0.00047049]
[1756917540539,1.28830762,112210.0,112200.0,0.00262049]
[1756917540782,1.28830762,112210.0,112200.0,0.00047049]
[1756917540965,1.28930762,112210.0,112200.0,0.00047049]
[1756917541201,1.38122361,112210.0,112200.0,0.00047049]
[1756917541768,1.23042361,112210.0,112200.0,0.00047049]
[1756917541986,1.40591361,112210.0,112200.0,0.00047049]
[1756917542416,1.25511361,112210.0,112200.0,0.00047049]
[1756917542619,1.40599361,112210.0,112200.0,0.00047049]
[1756917544951,1.25511361,112210.0,112200.0,0.00047049]
[1756917545165,1.40595361,112210.0,112200.0,0.00047049]
[1756917545383,0.65746177,112210.0,112200.0,0.00262049]
[1756917545609,0.65245177,112210.0,112200.0,0.00262049]
[1756917546005,0.80329177,112210.0,112200.0,0.00262049]
[1756917546221,1.28934762,112210.0,112200.0,0.00262049]
[1756917546898,1.28731762,112210.0,112200.0,0.00262049]
[1756917547323,0.65245177,112210.0,112200.0,0.1808736]
[1756917547529,0.80329177,112210.0,112200.0,0.1823136]
[1756917548208,0.3735668,112210.0,112200.0,0.1823136]
[1756917548435,0.5244468,112210.0,112200.0,0.66335945]
[1756917548640,0.00676945,112210.0,112200.0,0.66335945]
[1756917549948,0.00676945,112210.0,112200.0,1.21443945]
[1756917550959,0.00676945,112210.0,112200.0,1.06335945]
[1756917551371,0.00676945,112210.0,112200.0,1.21435945]
[1756917551576,0.00676945,112210.0,112200.0,1.06335945]
[1756917551737,0.00676945,112210.0,112200.0,1.21435945]
[1756917553889,0.0095544,112210.0,112200.0,0.5808736]
[1756917554109,0.0095544,112210.0,112200.0,0.7317936]
[1756917554320,0.0085544,112210.0,112200.0,0.7317936]
[1756917554527,0.0085544,112210.0,112200.0,0.7332336]
[1756917554713,0.0085544,112210.0,112200.0,1.06335945]
[1756917554921,0.0095544,112210.0,112200.0,1.21439945]
[1756917555133,0.0075544,112210.0,112200.0,1.21439945]
[1756917555328,0.0075544,112210.0,112200.0,1.21291945]
[1756917555581,0.0065544,112210.0,112200.0,1.21291945]
[1756917555762,0.18479163,112210.0,112200.0,0.5808736]
[1756917555909,0.0075544,112210.0,112200.0,0.7318736]
[1756917556315,0.0095544,112210.0,112200.0,0.7318736]
[1756917556543,0.0095544,112210.0,112200.0,1.21435945]
[1756917556749,0.00676945,112210.0,112200.0,1.21435945]
[1756917558910,0.00676945,112210.0,112200.0,1.06335945]
[1756917559106,0.00676945,112210.0,112200.0,1.21435945]
[1756917560097,0.00676945,112210.0,112200.0,0.7318736]
[1756917560301,0.0115844,112210.0,112200.0,0.7318736]
[1756917560519,0.0147344,112210.0,112200.0,0.7318736]
[1756917560736,0.0095544,112210.0,112200.0,0.7318736]
[1756917561478,0.0095544,112210.0,112200.0,1.21435945]
[1756917561689,0.00676945,112210.0,112200.0,1.21435945]
[1756917562535,0.00676945,112210.0,112200.0,0.7318736]
[1756917562747,0.00676945,112210.0,112200.0,1.21291945]
[1756917563157,0.0095544,112210.0,112200.0,1.21291945]
[1756917565325,0.0095544,112210.0,112200.0,1.06191945]